bitfinex/quotes_SOLUSD_20220307
["timestamp","ask_amount","ask_price","bid_price","bid_amount"]
[1646634551410,26.25455077,83.085,83.025,18.3633]
[1646634551610,1.62555077,83.077,83.013,23.205]
[1646634551807,1.62555077,83.073,83.013,23.205]
[1646634552008,6.019,83.072,83.013,23.205]
[1646634552409,7.64455077,83.072,83.013,23.205]
[1646634553007,6.019,83.072,83.013,23.205]
[1646634553207,7.64655077,83.073,83.013,23.205]
[1646634553409,1.62555077,83.071,83.013,23.205]
[1646634555008,1.62555077,83.072,83.014,1.88200404]
[1646634555211,6.019,83.071,83.02,18.0653]
[1646634555409,1.62555077,83.073,83.02,18.0653]
[1646634555610,24.629,83.085,83.021,1.88200404]
[1646634557111,24.629,83.085,83.04,18.0611]
[1646634557312,24.629,83.085,83.041,23.9075]
[1646634557513,24.629,83.085,83.041,25.78950404]
[1646634557912,59.52432664,83.087,83.041,25.78950404]
[1646634559514,59.52432664,83.087,83.041,43.89470404]
[1646634560417,1.62555077,83.093,83.05,18.0585]
[1646634560615,1.62555077,83.1,83.051,23.2714]
[1646634560815,1.62555077,83.104,83.051,25.15340404]
[1646634561015,1.62555077,83.106,83.051,25.15340404]
[1646634561518,54.9994487,83.105,83.051,25.15340404]
[1646634562318,1.62555077,83.102,83.051,25.15340404]
[1646634562718,1.62555077,83.103,83.051,25.15340404]
[1646634562917,1.62555077,83.104,83.051,25.15340404]
[1646634564019,1.62555077,83.103,83.051,25.15340404]
[1646634564237,1.62555077,83.101,83.051,23.2714]
[1646634564439,1.62555077,83.102,83.051,23.2714]
[1646634566842,1.62555077,83.103,83.051,23.2714]
[1646634567241,1.62555077,83.097,83.051,23.2714]
[1646634567441,1.62555077,83.098,83.051,23.2714]
[1646634569644,6.018,83.104,83.051,23.2714]
[1646634569645,1.62555077,83.092,83.051,23.2714]
[1646634570446,1.62555077,83.093,83.051,23.2714]
[1646634571044,1.62555077,83.094,83.051,23.2714]
[1646634572444,1.62555077,83.094,83.052,6.018]
[1646634572845,1.62555077,83.093,83.052,6.018]
[1646634577050,1.62555077,83.093,83.051,23.2714]
[1646634577452,1.62555077,83.094,83.051,23.2714]
[1646634577651,1.62555077,83.093,83.052,6.018]
[1646634578450,1.62555077,83.095,83.052,6.018]
[1646634579652,1.62555077,83.094,83.052,6.018]
[1646634581955,1.62555077,83.094,83.053,59.22123124]
[1646634582156,1.62555077,83.097,83.054,6.018]
[1646634582758,1.62555077,83.098,83.054,6.018]
[1646634582956,1.62555077,83.098,83.052,6.018]
[1646634583361,1.62555077,83.097,83.052,6.018]
[1646634583557,1.62555077,83.089,83.052,6.018]
[1646634583756,1.62555077,83.088,83.052,6.018]
[1646634584457,1.62555077,83.089,83.052,6.018]
[1646634585657,1.62555077,83.088,83.052,6.018]
[1646634587159,1.62555077,83.087,83.052,6.018]
[1646634587359,24.1942,83.103,83.052,6.018]
[1646634587360,1.62555077,83.083,83.052,6.018]
[1646634587560,1.62555077,83.084,83.052,6.018]
[1646634587860,1.62555077,83.085,83.052,6.018]
[1646634588260,1.62555077,83.084,83.052,6.018]
[1646634588660,1.62555077,83.085,83.052,6.018]
[1646634589262,1.62555077,83.084,83.052,6.018]
[1646634589861,1.62555077,83.085,83.052,6.018]
[1646634590562,1.62555077,83.086,83.052,6.018]
[1646634590762,1.62555077,83.085,83.052,126.618]
[1646634591164,1.62555077,83.089,83.052,6.018]
[1646634591564,1.62555077,83.09,83.052,6.018]
[1646634592465,1.62555077,83.091,83.052,6.018]
[1646634592664,1.62555077,83.09,83.052,6.018]
[1646634592865,1.62555077,83.089,83.052,6.018]
[1646634593263,1.62555077,83.088,83.052,6.018]
[1646634593864,1.62555077,83.087,83.052,6.018]
[1646634594268,1.62555077,83.087,83.03,18.0615]
[1646634594466,1.62555077,83.082,83.042,23.2914]
[1646634594666,1.62555077,83.077,83.042,23.2914]
[1646634594867,1.62555077,83.076,83.042,23.2914]
[1646634595066,64.48978352,83.076,83.042,23.2914]
[1646634595268,62.86423275,83.076,83.042,23.2914]
[1646634597170,64.48978352,83.076,83.043,6.019]
[1646634598370,62.86423275,83.076,83.043,6.019]
[1646634599972,64.48978352,83.076,83.043,6.019]
[1646634601477,62.86423275,83.076,83.043,6.019]
[1646634603176,62.86423275,83.076,83.042,40.966]
[1646634605503,1.62555077,83.08,83.042,40.966]
[1646634605881,1.62555077,83.081,83.042,40.966]
[1646634606080,1.62555077,83.084,83.042,40.966]
[1646634606680,48.09058937,83.083,83.042,40.966]
[1646634607280,49.71614014,83.083,83.042,40.966]
[1646634607682,1.62555077,83.082,83.042,40.966]
[1646634608489,1.62555077,83.081,83.042,40.966]
[1646634610188,1.62555077,83.082,83.042,40.966]
[1646634610590,1.62555077,83.081,83.042,40.966]
[1646634610990,1.62555077,83.082,83.042,40.966]
[1646634611192,1.62555077,83.081,83.042,40.966]
[1646634611392,1.62555077,83.082,83.042,40.966]
[1646634611591,1.62555077,83.081,83.021,22.7347]
[1646634611793,1.62555077,83.072,83.022,23.8424]
[1646634611991,1.62555077,83.071,83.022,23.8424]
[1646634612191,1.62555077,83.07,83.022,23.8424]
[1646634612591,1.62555077,83.067,83.022,23.8424]
[1646634613010,1.62555077,83.066,83.022,23.8424]
[1646634613215,1.62555077,83.065,83.022,23.8424]
[1646634613415,1.62555077,83.066,83.022,23.8424]
[1646634614216,1.62555077,83.065,83.022,23.8424]
[1646634614515,1.62555077,83.064,83.022,23.8424]
[1646634614913,1.62555077,83.06,83.022,23.8424]
[1646634615114,1.62555077,83.064,83.022,23.8424]
[1646634615313,1.62555077,83.065,83.022,23.8424]
[1646634615713,1.62555077,83.064,83.022,23.8424]
[1646634616614,1.62555077,83.063,83.022,23.8424]
[1646634617613,1.62555077,83.066,83.022,23.8424]
[1646634618415,6.019,83.08,83.022,23.8424]
[1646634618416,1.62555077,83.064,83.022,23.8424]
[1646634618615,6.019,83.08,83.022,23.8424]
[1646634618616,1.62555077,83.063,83.022,23.8424]
[1646634618816,1.62555077,83.064,83.022,23.8424]
[1646634619124,1.62555077,83.063,83.0,21.50673008]
[1646634619323,1.62555077,83.063,82.961,120.6]
[1646634619324,1.62555077,83.054,82.98,14.68]
[1646634619523,1.62555077,83.049,82.98,14.68]
[1646634619717,1.62555077,83.047,82.98,14.68]
[1646634619919,1.62555077,83.036,82.963,23.9885]
[1646634620126,1.62555077,83.032,82.963,41.9144]
[1646634620326,122.22555077,83.03,82.963,41.9144]
[1646634620519,121.22555077,83.03,82.963,41.9144]
[1646634620719,119.6,83.03,82.963,41.9144]
[1646634621523,6.024,83.029,82.963,41.9144]
[1646634621924,119.6,83.03,82.963,41.9144]
[1646634622225,23.1563,83.031,82.963,41.9144]
[1646634624425,6.024,83.03,82.963,41.9144]
[1646634626125,126.624,83.03,82.963,23.9885]
[1646634627126,6.024,83.03,82.963,23.9885]
[1646634629831,6.024,83.03,82.964,6.024]
[1646634630330,6.024,83.03,82.97,18.0767]
[1646634630529,6.024,83.03,82.971,6.024]
[1646634630729,126.624,83.03,82.971,6.024]
[1646634631430,126.624,83.03,82.964,6.024]
[1646634631631,6.024,83.03,82.964,6.024]
[1646634631833,23.1563,83.031,82.964,6.024]
[1646634632033,23.1563,83.031,82.965,24.82595435]
[1646634632232,23.1563,83.031,82.98,14.68]
[1646634632435,59.20514835,83.035,82.981,30.1499]
[1646634632632,59.20514835,83.035,82.99,18.0717]
[1646634632831,59.20514835,83.035,82.991,30.1499]
[1646634634033,59.20514835,83.035,83.0,18.0693]
[1646634634232,59.20514835,83.035,83.001,6.022]
[1646634635035,59.20514835,83.035,83.0,32.7493]
[1646634636032,59.20514835,83.035,83.001,6.022]
[1646634644344,1.62555077,83.058,83.001,6.022]
[1646634644542,1.62555077,83.06,83.002,24.6322]
[1646634645043,1.62555077,83.059,83.002,24.6322]
[1646634645246,50.93479095,83.058,83.002,24.6322]
[1646634646443,1.62555077,83.055,83.002,24.6322]
[1646634646843,1.62555077,83.054,83.002,24.6322]
[1646634647446,1.62555077,83.053,83.002,24.6322]
[1646634647848,6.022,83.057,83.002,24.6322]
[1646634647849,1.62555077,83.05,83.002,24.6322]
[1646634648050,1.62555077,83.053,83.002,24.6322]
[1646634649049,50.93479095,83.058,83.002,24.6322]
[1646634649650,50.93479095,83.058,83.01,18.0677]
[1646634649849,50.93479095,83.058,83.011,56.66903772]
[1646634650051,50.93479095,83.058,83.012,23.1637]
[1646634655269,1.62555077,83.075,83.012,23.1637]
[1646634655470,1.62555077,83.075,83.021,120.6]
[1646634655683,1.62555077,83.084,83.03,14.68]
[1646634655871,1.62555077,83.087,83.031,0.49103207]
[1646634656071,1.62555077,83.089,83.031,121.09103207]
[1646634656271,1.62555077,83.093,83.031,121.09103207]
[1646634656472,6.019,83.11,83.032,23.9218]
[1646634656473,60.56916381,83.088,83.032,23.9218]
[1646634657472,1.62555077,83.085,83.032,23.9218]
[1646634657872,1.62555077,83.086,83.032,23.9218]
[1646634658476,1.62555077,83.085,83.032,23.9218]
[1646634658674,1.62555077,83.087,83.032,23.9218]
[1646634658876,60.56916381,83.088,83.032,23.9218]
[1646634660278,60.56916381,83.088,83.04,68.45543862]
[1646634660679,60.56916381,83.088,83.04,18.0601]
[1646634663380,60.56916381,83.088,83.04,32.7401]
[1646634664783,23.6167,83.096,83.041,64.66935899]
[1646634664982,23.6167,83.096,83.05,18.0551]
[1646634665182,1.62555077,83.102,83.05,32.7351]
[1646634665383,1.62555077,83.105,83.05,32.7351]
[1646634665583,1.62555077,83.108,83.05,32.7351]
[1646634665784,47.04693501,83.107,83.051,120.6]
[1646634665982,47.04693501,83.107,83.052,23.4876]
[1646634667186,47.04693501,83.107,83.06,18.0556]
[1646634667386,47.04693501,83.107,83.06,32.7356]
[1646634668988,47.04693501,83.107,83.06,14.68]
[1646634671091,2.83613526,83.106,83.052,23.4876]
[1646634671293,167.64693501,83.107,83.052,23.4876]
[1646634671493,1.62555077,83.103,83.052,23.4876]
[1646634671691,1.62555077,83.101,83.052,23.4876]
[1646634671890,1.62555077,83.101,83.03,32.9793]
[1646634672091,1.62555077,83.098,83.031,24.5053]
[1646634672290,1.62555077,83.091,83.031,24.5053]
[1646634672491,1.62555077,83.093,83.031,24.5053]
[1646634672792,6.019,83.095,83.031,24.5053]
[1646634672992,6.019,83.095,83.032,45.87007349]
[1646634673193,1.62555077,83.096,83.04,18.0597]
[1646634673491,1.62555077,83.102,83.041,24.5053]
[1646634673693,47.04693501,83.107,83.041,145.1053]
[1646634674095,1.62555077,83.115,83.041,145.1053]
[1646634674293,1.62555077,83.116,83.051,120.6]
[1646634674497,1.62555077,83.124,83.061,120.6]
[1646634674692,1.62555077,83.124,83.071,120.6]
[1646634674893,1.62555077,83.135,83.081,120.6]
[1646634675092,64.87027723,83.136,83.083,120.6]
[1646634675292,1.62555077,83.14,83.084,72.31]
[1646634675493,1.62555077,83.141,83.091,120.6]
[1646634675693,23.5588,83.198,83.085,4.51749177]
[1646634675694,1.62555077,83.153,83.101,120.6]
[1646634675894,1.62555077,83.159,83.11,14.68]
[1646634676094,1.62555077,83.159,83.12,14.68]
[1646634676293,45.55277318,83.158,83.12,14.68]
[1646634677294,6.014,83.157,83.103,24.9304]
[1646634677698,1.62555077,83.156,83.103,24.9304]
[1646634677896,1.62555077,83.155,83.103,24.9304]
[1646634678096,6.014,83.157,83.103,24.9304]
[1646634679398,7.63955077,83.157,83.103,24.9304]
[1646634680101,6.014,83.157,83.103,24.9304]
[1646634680299,45.55277318,83.158,83.103,24.9304]
[1646634680899,47.17832395,83.158,83.103,24.9304]
[1646634682902,45.55277318,83.158,83.103,24.9304]
[1646634688031,47.17832395,83.158,83.103,24.9304]
[1646634688208,45.55277318,83.158,83.103,24.9304]
[1646634688412,47.17832395,83.158,83.111,59.16597315]
[1646634688812,47.17832395,83.158,83.112,22.5971]
[1646634689012,45.55277318,83.158,83.112,22.5971]
[1646634689212,47.17832395,83.158,83.112,22.5971]
[1646634689414,45.55277318,83.158,83.112,22.5971]
[1646634699126,45.55277318,83.158,83.113,6.014]
[1646634702431,1.62555077,83.156,83.113,6.014]
[1646634704647,1.62555077,83.148,83.113,6.014]
[1646634706248,1.62555077,83.147,83.113,6.014]
[1646634706450,1.62555077,83.144,83.103,24.9304]
[1646634706850,1.62555077,83.141,83.103,24.9304]
[1646634707050,1.62555077,83.14,83.103,24.9304]
[1646634707253,1.62555077,83.139,83.103,24.9304]
[1646634707753,1.62555077,83.138,83.103,24.9304]
[1646634708751,1.62555077,83.139,83.103,24.9304]
[1646634708951,1.62555077,83.139,83.104,6.015]
[1646634709551,1.62555077,83.139,83.092,6.015]
[1646634709751,1.62555077,83.138,83.092,6.015]
[1646634711451,1.62555077,83.142,83.092,6.015]
[1646634712455,1.62555077,83.141,83.092,6.015]
[1646634712658,1.62555077,83.142,83.092,6.015]
[1646634713657,1.62555077,83.143,83.1,18.047]
[1646634713958,1.62555077,83.143,83.101,24.2896]
[1646634714358,1.62555077,83.144,83.101,24.2896]
[1646634714558,13.80451345,83.23,83.101,24.2896]
[1646634714559,1.62555077,83.156,83.101,24.2896]
[1646634714760,1.62555077,83.157,83.11,18.0445]
[1646634714958,1.62555077,83.164,83.12,14.68]
[1646634715161,1.62555077,83.17,83.121,84.31538165]
[1646634715357,3.26233577,83.194,83.121,84.31538165]
[1646634715358,1.62555077,83.177,83.121,84.31538165]
[1646634715758,3.26233577,83.2,83.121,84.31538165]
[1646634715759,1.62555077,83.178,83.121,84.31538165]
[1646634715960,1.62555077,83.179,83.122,0.48133077]
[1646634716258,1.62555077,83.179,83.121,84.31538165]
[1646634716259,1.62555077,83.184,83.131,72.79133077]
[1646634716459,24.7783,83.237,83.141,198.75664976]
[1646634716460,5.077e-05,83.196,83.141,198.75664976]
[1646634716659,5.077e-05,83.196,83.153,120.6]
[1646634716858,6.011,83.22,83.153,120.6]
[1646634717264,6.54620124,83.219,83.16,18.0297]
[1646634717459,6.54620124,83.219,83.17,14.68]
[1646634717663,3.26233577,83.223,83.17,14.68]
[1646634717860,64.15712537,83.222,83.17,14.68]
[1646634718065,6.54620124,83.221,83.17,14.68]
[1646634718261,64.15712537,83.222,83.17,14.68]
[1646634718964,6.009,83.221,83.17,14.68]
[1646634719162,6.009,83.221,83.154,22.7955]
[1646634719562,126.609,83.221,83.15,14.68]
[1646634719763,120.6,83.219,83.15,14.68]
[1646634719966,120.6,83.217,83.13,14.68]
[1646634720168,3.26233577,83.213,83.123,23.9035]
[1646634720465,3.26233577,83.207,83.11,14.68]
[1646634720666,6.011,83.206,83.11,14.68]
[1646634720965,120.6,83.204,83.111,52.56084911]
[1646634721165,120.6,83.202,83.111,52.56084911]
[1646634721364,6.54661447,83.201,83.111,52.56084911]
[1646634721564,6.54661447,83.201,83.112,120.6]
[1646634721764,24.5197,83.201,83.112,120.6]
[1646634721963,24.5197,83.201,83.121,120.6]
[1646634722163,24.5197,83.201,83.112,41.29433666]
[1646634722164,24.5197,83.201,83.13,135.28]
[1646634722365,24.5197,83.201,83.141,61.22391166]
[1646634722563,24.5197,83.201,83.142,23.9035]
[1646634723365,120.6,83.2,83.142,23.9035]
[1646634723667,120.6,83.2,83.11,14.68]
[1646634723866,6.011,83.199,83.11,14.68]
[1646634724467,6.011,83.199,83.111,24.0024]
[1646634724666,126.611,83.199,83.112,62.77842342]
[1646634725270,6.011,83.199,83.112,62.77842342]
[1646634725468,6.011,83.215,83.112,62.77842342]
[1646634725670,120.6,83.213,83.112,62.77842342]
[1646634725872,6.011,83.212,83.112,62.77842342]
[1646634726071,120.6,83.211,83.12,18.0425]
[1646634726273,6.011,83.21,83.12,153.3225]
[1646634726672,6.011,83.217,83.12,153.3225]
[1646634727273,13.49956733,83.216,83.12,32.7225]
[1646634727474,126.611,83.215,83.121,24.611]
[1646634727877,2.83613526,83.214,83.121,24.611]
[1646634728174,120.6,83.212,83.121,24.611]
[1646634728373,6.011,83.211,83.121,24.611]
[1646634728574,120.6,83.21,83.121,24.611]
[1646634728775,6.011,83.209,83.121,24.611]
[1646634729175,120.6,83.208,83.121,24.611]
[1646634729374,6.011,83.207,83.121,24.611]
[1646634729975,6.011,83.207,83.13,18.0402]
[1646634730174,126.611,83.217,83.131,24.6742]
[1646634730374,120.6,83.215,83.132,6.011]
[1646634730582,126.611,83.215,83.132,6.011]
[1646634730974,13.50308624,83.214,83.132,6.011]
[1646634732178,13.50308624,83.216,83.133,22.5839]
[1646634732377,13.50308624,83.216,83.14,18.038]
[1646634732676,13.50308624,83.217,83.15,14.68]
[1646634732877,13.50308624,83.217,83.151,6.01]
[1646634734277,120.6,83.216,83.151,6.01]
[1646634734477,13.50308624,83.217,83.151,6.01]
[1646634734677,13.50308624,83.215,83.151,6.01]
[1646634735077,134.10308624,83.216,83.151,6.01]
[1646634735478,19.51308624,83.215,83.15,14.68]
[1646634735877,13.50308624,83.214,83.15,14.68]
[1646634736078,6.01,83.213,83.15,14.68]
[1646634736278,13.50308624,83.214,83.151,6.01]
[1646634736797,13.50308624,83.215,83.151,6.01]
[1646634737178,120.6,83.214,83.151,6.01]
[1646634737579,120.6,83.212,83.151,6.01]
[1646634737981,120.6,83.21,83.151,6.01]
[1646634738180,6.011,83.209,83.151,6.01]
[1646634738379,120.6,83.208,83.151,6.01]
[1646634738580,6.011,83.207,83.151,6.01]
[1646634738978,6.011,83.207,83.15,14.68]
[1646634739580,6.011,83.216,83.15,14.68]
[1646634739879,120.6,83.214,83.151,6.01]
[1646634740278,120.6,83.212,83.151,6.01]
[1646634740480,120.6,83.21,83.151,6.01]
[1646634740979,120.6,83.208,83.151,6.01]
[1646634741680,6.09847103,83.215,83.151,6.01]
[1646634741879,12.55689232,83.214,83.15,14.68]
[1646634742081,26.07164649,83.214,83.15,14.68]
[1646634742279,6.54689232,83.213,83.15,14.68]
[1646634742480,6.01,83.212,83.15,14.68]
[1646634742879,20.06164649,83.211,83.15,14.68]
[1646634743080,12.55789232,83.21,83.15,14.68]
[1646634743283,3.26233577,83.209,83.151,6.011]
[1646634743479,23.32398226,83.21,83.151,6.011]
[1646634743679,6.54689232,83.209,83.151,6.011]
[1646634743880,9.80922809,83.209,83.151,6.011]
[1646634744082,3.26233577,83.209,83.151,6.011]
[1646634744303,6.54689232,83.208,83.151,6.011]
[1646634744481,3.26233577,83.21,83.151,6.011]
[1646634744683,6.54689232,83.207,83.151,6.011]
[1646634744881,3.26233577,83.209,83.151,6.011]
[1646634745282,3.26233577,83.208,83.151,6.011]
[1646634745482,9.80922809,83.208,83.151,6.011]
[1646634745682,3.26233577,83.208,83.151,6.011]
[1646634745885,9.80922809,83.214,83.151,6.011]
[1646634746082,120.6,83.213,83.151,6.011]
[1646634746283,12.55689232,83.212,83.15,14.68]
[1646634746482,127.14689232,83.211,83.15,14.68]
[1646634746683,12.55789232,83.21,83.15,14.68]
[1646634746983,127.14689232,83.209,83.15,14.68]
[1646634747183,120.6,83.207,83.15,14.68]
[1646634747386,6.011,83.206,83.15,14.68]
[1646634748191,120.6,83.204,83.15,14.68]
[1646634748390,126.611,83.204,83.15,14.68]
[1646634748589,120.6,83.204,83.15,14.68]
[1646634749190,120.6,83.204,83.151,6.011]
[1646634749390,120.6,83.203,83.151,6.011]
[1646634750090,120.6,83.203,83.15,14.68]
[1646634750392,120.6,83.202,83.142,6.011]
[1646634751592,6.011,83.209,83.142,6.011]
[1646634752007,120.6,83.207,83.142,6.011]
[1646634752208,120.6,83.205,83.142,6.011]
[1646634752407,120.6,83.203,83.142,6.011]
[1646634752610,6.011,83.202,83.142,6.011]
[1646634753911,120.6,83.2,83.142,6.011]
[1646634755010,120.6,83.206,83.142,6.011]
[1646634755210,12.55796939,83.205,83.142,6.011]
[1646634755410,127.14696939,83.204,83.142,6.011]
[1646634755613,120.6,83.202,83.134,6.011]
[1646634755810,6.011,83.201,83.134,6.011]
[1646634756110,3.26233577,83.198,83.134,6.011]
[1646634756310,3.26233577,83.196,83.134,6.011]
[1646634756514,120.6,83.194,83.134,6.011]
[1646634756712,120.6,83.192,83.134,6.011]
[1646634756911,120.6,83.19,83.134,6.011]
[1646634757210,120.6,83.188,83.134,6.011]
[1646634758312,120.6,83.187,83.134,6.011]
[1646634759212,120.6,83.187,83.121,22.6879]
[1646634759213,6.011,83.186,83.135,51.53920457]
[1646634759614,120.6,83.194,83.122,6.011]
[1646634759615,6.011,83.193,83.122,6.011]
[1646634759814,120.6,83.191,83.122,6.011]
[1646634760014,120.6,83.189,83.122,6.011]
[1646634760215,6.011,83.188,83.122,6.011]
[1646634760414,6.011,83.188,83.123,17.9616]
[1646634760615,6.011,83.188,83.124,6.011]
[1646634761517,6.011,83.193,83.124,6.011]
[1646634761915,120.6,83.191,83.124,6.011]
[1646634762115,6.011,83.19,83.124,6.011]
[1646634762315,120.6,83.189,83.123,70.65063825]
[1646634762517,6.011,83.188,83.123,70.65063825]
[1646634763616,6.011,83.193,83.123,70.65063825]
[1646634763815,120.6,83.191,83.123,70.65063825]
[1646634764020,120.6,83.189,83.123,70.65063825]
[1646634764315,6.011,83.188,83.123,52.68903825]
[1646634765617,6.011,83.193,83.134,6.011]
[1646634765816,6.011,83.193,83.135,23.4635]
[1646634766018,6.547714,83.192,83.135,23.4635]
[1646634766316,6.011,83.193,83.135,23.4635]
[1646634766921,81.29733777,83.195,83.135,23.4635]
[1646634766922,6.011,83.194,83.135,23.4635]
[1646634767120,6.54758534,83.193,83.135,23.4635]
[1646634767319,6.011,83.192,83.135,23.4635]
[1646634767520,6.011,83.194,83.135,23.4635]
[1646634767919,6.54755529,83.193,83.135,23.4635]
[1646634768119,81.29733777,83.195,83.135,23.4635]
[1646634768120,6.011,83.192,83.135,23.4635]
[1646634768319,6.011,83.194,83.135,23.4635]
[1646634770229,81.29733777,83.195,83.135,23.4635]
[1646634770628,13.52591396,83.194,83.135,23.4635]
[1646634773930,6.011,83.193,83.135,23.4635]
[1646634774333,13.52591396,83.192,83.135,23.4635]
[1646634774534,6.011,83.191,83.135,23.4635]
[1646634775132,13.52591396,83.19,83.135,23.4635]
[1646634775935,6.011,83.194,83.135,23.4635]
[1646634775936,13.52591396,83.193,83.135,23.4635]
[1646634776136,6.011,83.192,83.135,23.4635]
[1646634776737,13.52591396,83.191,83.135,23.4635]
[1646634776937,6.011,83.19,83.135,23.4635]
[1646634777537,13.52591396,83.189,83.135,23.4635]
[1646634778438,13.52591396,83.194,83.135,23.4635]
[1646634778838,6.54712315,83.193,83.135,23.4635]
[1646634779238,13.52591396,83.192,83.135,23.4635]
[1646634779439,6.54712315,83.191,83.135,23.4635]
[1646634779839,13.52591396,83.192,83.135,23.4635]
[1646634780038,13.52591396,83.19,83.135,23.4635]
[1646634780238,120.6,83.189,83.135,23.4635]
[1646634780841,120.6,83.187,83.135,23.4635]
[1646634781341,13.52591396,83.186,83.135,23.4635]
[1646634782142,13.52591396,83.193,83.135,23.4635]
[1646634782342,6.011,83.192,83.135,23.4635]
[1646634782542,12.55805104,83.192,83.135,23.4635]
[1646634782941,20.072965,83.191,83.135,23.4635]
[1646634783143,12.55805104,83.19,83.135,23.4635]
[1646634783343,6.54705104,83.189,83.135,23.4635]
[1646634783744,13.52591396,83.188,83.135,23.4635]
[1646634784543,13.52591396,83.193,83.135,23.4635]
[1646634784745,12.55755739,83.192,83.135,23.4635]
[1646634784942,6.54655739,83.191,83.135,23.4635]
[1646634785343,13.52591396,83.19,83.135,23.4635]
[1646634785560,6.54655739,83.189,83.135,23.4635]
[1646634785961,120.6,83.188,83.135,23.4635]
[1646634786161,134.12591396,83.188,83.136,6.011]
[1646634786562,134.12591396,83.187,83.136,6.011]
[1646634786964,13.52591396,83.186,83.136,6.011]
[1646634787366,120.6,83.187,83.136,6.011]
[1646634787563,126.611,83.192,83.136,6.011]
[1646634787763,13.52591396,83.186,83.136,6.011]
[1646634788264,6.011,83.193,83.136,6.011]
[1646634788265,13.52591396,83.19,83.136,6.011]
[1646634788763,6.54690732,83.189,83.136,6.011]
[1646634788965,20.07282128,83.189,83.136,6.011]
[1646634789163,13.52591396,83.189,83.136,6.011]
[1646634789364,20.07282128,83.188,83.136,6.011]
[1646634789563,6.54690732,83.187,83.136,6.011]
[1646634789763,13.52591396,83.187,83.136,6.011]
[1646634790165,13.52591396,83.192,83.136,6.011]
[1646634790363,12.55756674,83.191,83.136,6.011]
[1646634790563,6.54656674,83.19,83.136,6.011]
[1646634790963,13.52591396,83.189,83.136,6.011]
[1646634791364,13.52591396,83.19,83.136,6.011]
[1646634791564,6.5466003,83.189,83.136,6.011]
[1646634791965,13.52591396,83.193,83.15,14.68]
[1646634792167,13.52591396,83.203,83.151,22.5851]
[1646634792668,51.44950502,83.202,83.151,74.06239333]
[1646634794368,6.011,83.201,83.151,74.06239333]
[1646634794570,6.011,83.201,83.151,92.49309333]
[1646634797672,51.44950502,83.202,83.151,98.50409333]
[1646634799273,51.44950502,83.202,83.151,47.0268]
[1646634799674,6.011,83.201,83.151,41.0158]
[1646634799875,51.44950502,83.202,83.151,41.0158]
[1646634800575,51.44950502,83.202,83.152,6.011]
[1646634803275,12.79838567,83.201,83.151,22.5851]
[1646634803476,120.6,83.2,83.151,22.5851]
[1646634804477,120.6,83.198,83.151,22.5851]
[1646634804677,6.011,83.197,83.151,22.5851]
[1646634805980,6.011,83.2,83.151,22.5851]
[1646634806483,12.79037655,83.199,83.151,22.5851]
[1646634806678,6.011,83.198,83.151,22.5851]
[1646634807280,6.011,83.201,83.151,22.5851]
[1646634807480,51.44950502,83.202,83.152,6.011]
[1646634821294,3.26233577,83.224,83.152,126.611]
[1646634821495,6.54441781,83.228,83.152,126.611]
[1646634821693,6.01,83.227,83.152,126.611]
[1646634821893,6.54441781,83.226,83.152,126.611]
[1646634822093,6.54441781,83.226,83.152,154.2518765]
[1646634822293,48.45932022,83.225,83.152,154.2518765]
[1646634823101,48.45932022,83.225,83.161,120.6]